Cogmind - Beta 10.2 @@@ ROGUE MODE // 2021.11.26 @ 19:56:45 Player: BigP Result: Self-destructed Performance ------------- Evolutions (1) 500 Regions Visited (2) 400 Robots Destroyed (6) 30 Value Destroyed (76) 76 Prototype IDs (0) 0 Alien Tech Used (0) 0 Bonus (0) 0 TOTAL SCORE: 1006 Bonus ------- None Cogmind --------- Core Integrity 211/400 Matter 300/300 Energy 100/100 System Corruption 0% Temperature Cool (0) Movement Core (50) Location -9/Materials Parts ------- > --- POWER (1) -------- (None) > --- PROPULSION (4) --- (None) > --- UTILITY (2) ------ (None) > --- WEAPON (2) ------- (None) > --- INVENTORY (4) ---- Small Storage Unit Sensor Array Improved Targeting Computer Peak State ------------ > --- POWER ------------ Improved Ion Engine > --- PROPULSION ------- VTOL Module VTOL Module VTOL Module VTOL Module > --- UTILITY ---------- Small Storage Unit Light Armor Plating > --- WEAPON ----------- EM Pulse Gun Light Assault Rifle > --- INVENTORY -------- Light Ion Engine Light Armor Plating [Rating: 14] Favorites ----------- Power Improved Ion Engine Engine Improved Ion Engine Propulsion VTOL Module Wheel Wheel Flight Unit VTOL Module Utility Light Armor Plating Storage Small Storage Unit Protection Light Armor Plating Weapon Light Assault Rifle Energy Gun EM Pulse Gun Ballistic Gun Light Assault Rifle Build | -11 -10 -9 ------- Run | Scr Mat Mat Slots Evolved 2 | . . 2 Power . | . . . Propulsion 2 | . . 2 Utility . | . . . Weapon . | . . . Parts Attached 22 | 5 8 9 Power 4 | 1 1 2 Engine 4 | 1 1 2 Core . | . . . Reactor . | . . . Propulsion 7 | 1 4 2 Treads . | . . . Leg . | . . . Wheel 1 | 1 . . Hover . | . . . Flight 6 | . 4 2 Utility 9 | 1 3 5 Device . | . . . Storage 3 | 1 1 1 Processor . | . . . Hackware . | . . . Protection 6 | . 2 4 Artifact . | . . . Weapon 2 | 2 . . Energy Gun 1 | 1 . . Energy Cannon . | . . . Ballistic Gun 1 | 1 . . Ballistic Cannon . | . . . Launcher . | . . . Special Weapon . | . . . Impact Weapon . | . . . Slashing Weapon . | . . . Piercing Weapon . | . . . Special Melee Weapon . | . . . Unidentified Prototypes . | . . . Parts Lost 9 | . . 9 Power 1 | . . 1 Propulsion 4 | . . 4 Utility 2 | . . 2 Weapon 2 | . . 2 Highest Loss Streak 9 | . . 9 Average Slot Usage (%) 93 | . 76 96 Engine 11 | . 14 10 Flight 37 | . 9 43 Storage 9 | . 9 9 Protection 10 | . 10 11 Energy Gun 10 | . 14 10 Ballistic Gun 11 | . 14 11 Naked Turns 3 | . . 3 Heaviest Build 17 | 10 12 17 Greatest Support 20 | 10 10 20 Greatest Overweight (x) 3 | . 3 2 Average Overweight (x) . | . . . Largest Inventory Capacity 6 | 6 6 6 Average Capacity 5 | 5 5 5 Most Carried 6 | 2 6 4 Average Carried 2 | . 3 2 Final Capacity 6 | 6 6 4 Final Carried 4 | . 4 3 Class Distribution -------------------- 79% | Sprinter 20% | Mutant Dominant Class ---------------- Mutant | -10/Materials Sprinter | -9/Materials Resources | -11 -10 -9 ----------- Run | Scr Mat Mat Matter Collected 405 | 212 52 141 Remotely . | . . . Salvage Created 101 | . 52 49 Parts 18 | . 8 10 Haulers Intercepted . | . . . Recyclers Shooed . | . . . Parts Field Recycled . | . . . Retrieved Matter . | . . . Parts Self-Destructed . | . . . Prevented . | . . . Kills | -11 -10 -9 ------- Run | Scr Mat Mat Combat Hostiles Destroyed 5 | . 3 2 Guns 5 | . 3 2 Classes Destroyed 2 | . 1 1 Watcher 1 | . . 1 Swarmer 5 | . 3 2 Best Kill Streak 3 | . 3 2 Combat Bots Only 3 | . 3 2 Max Kills in Single Turn 1 | . 1 1 Gunslinging . | . . . Exploded . | . . . Melee . | . . . Uniques/NPCs Destroyed . | . . . Combat | -11 -10 -9 -------- Run | Scr Mat Mat Damage Taken 741 | . 84 657 Core 214 | . 25 189 Absorbed by Shields . | . . . Core Remaining (%) 95 | 100 90 . Volleys Fired 27 | . 9 18 Largest 2 | . 2 2 Hottest 60 | . 60 60 Shots Fired 47 | . 18 29 Gun 47 | . 18 29 Cannon . | . . . Launcher . | . . . Special . | . . . Kinetic 27 | . 9 18 Thermal . | . . . Explosive . | . . . Electromagnetic 20 | . 9 11 Robot Hit Streak 4 | . 4 4 Robot Miss Streak 4 | . 2 4 Penetration Max . | . . . Secondary Targets 1 | . . 1 Max Gunslinging Chain 1 | . . 1 Shots Hit Robots 25 | . 11 14 Core Hits 8 | . 3 5 Critical Hits . | . . . Critical Kills . | . . . Critical Parts Destroyed . | . . . Melee Attacks . | . . . Impact . | . . . Slashing . | . . . Piercing . | . . . Sneak Attacks . | . . . Combat Hostiles . | . . . Follow-up Attacks . | . . . Damage Inflicted 215 | . 91 124 Guns 215 | . 91 124 Cannons . | . . . Explosions . | . . . Melee . | . . . Ramming . | . . . Kinetic 81 | . 35 46 Thermal . | . . . Explosive . | . . . Electromagnetic 134 | . 56 78 Impact . | . . . Slashing . | . . . Piercing . | . . . Highest Corruption . | . . . Average Corruption . | . . . Corruption Purged . | . . . Overload Shots . | . . . Overflow Damage . | . . . Projectiles . | . . . Explosions . | . . . Melee . | . . . Knockbacks . | . . . Impact . | . . . Kinetic . | . . . Secondary . | . . . Self-Inflicted Damage . | . . . Shots . | . . . Rammed 1 | . . 1 Targets Rammed 1 | . . 1 Kicked . | . . . Crushed . | . . . Highest Temperature 198 | . 172 198 Average Temperature 77 | . 89 73 Received Heat Transfer 162 | . . 162 Siege Activations . | . . . Robots Corrupted . | . . . Combat Hostiles . | . . . Parts Fried . | . . . Impact Corruptions . | . . . Robots Melted . | . . . Combat Hostiles . | . . . Parts Melted . | . . . Heat Transferred . | . . . Parts Sabotaged . | . . . Parts Stolen . | . . . Parts Stripped . | . . . Power Chain Reactions . | . . . Missiles Intercepted . | . . . Alert | -11 -10 -9 ------- Run | Scr Mat Mat Peak Influence 102 | . 100 102 Initial 42 | . . 42 Average 33 | . 33 35 Maximum Alert Level . | . . . Low Security (%) 100 | 100 100 100 Level 1 . | . . . Level 2 . | . . . Level 3 . | . . . Level 4 . | . . . Level 5 . | . . . High Security . | . . . Max Security . | . . . Squads Dispatched 4 | . . 4 Investigation 1 | . . 1 Extermination . | . . . Reinforcement 3 | . . 3 Assault . | . . . Garrison . | . . . Intercept . | . . . Construction Impeded . | . . . Haulers Reinforced . | . . . Stealth | -11 -10 -9 --------- Run | Scr Mat Mat Distress Signals 3 | . . 3 Communications Jammed . | . . . Distress Signals . | . . . Times Spotted 29 | . 7 22 Peak Tracking Total 12 | . 4 12 Tactical Retreats 4 | . . 4 Traps | -11 -10 -9 ------- Run | Scr Mat Mat Traps Triggered 1 | . . 1 Indirectly . | . . . Trap Hack Attempts . | . . . Triggered . | . . . Disarmed . | . . . Reprogrammed . | . . . Reused . | . . . Traps Extracted . | . . . Installed . | . . . Triggered . | . . . Machines | -11 -10 -9 ---------- Run | Scr Mat Mat Machines Disabled 1 | . 1 . Max in Single Turn 1 | . 1 . Machines Sabotaged . | . . . Garrisons Compromised . | . . . Overloaded Fab Kills . | . . . Fab Network Shutdowns . | . . . Hacking | -11 -10 -9 --------- Run | Scr Mat Mat Machines Accessed 4 | . 1 3 Terminals 1 | . 1 . Fabricators . | . . . Repair Stations 1 | . . 1 Recycling Units 2 | . . 2 Scanalyzers . | . . . Garrison Access . | . . . Total Hacks 10 | . 3 7 Successful 5 | . . 5 Failed 5 | . 3 2 Catastrophic . | . . . Database Lockouts . | . . . Manual . | . . . Terminals 3 | . 3 . Fabricators . | . . . Repair Stations 3 | . . 3 Recycling Units 4 | . . 4 Scanalyzers . | . . . Garrison Access . | . . . Terminal Hacks . | . . . Fabricator Hacks . | . . . Repair Station Hacks 2 | . . 2 Scan Component 1 | . . 1 Repair 1 | . . 1 Recycling Unit Hacks 3 | . . 3 Report Inventory 1 | . . 1 Retrieve Components 2 | . . 2 Scanalyzer . | . . . Garrison Access Hacks . | . . . Unauthorized Hacks . | . . . Terminals . | . . . Fabricators . | . . . Repair Stations . | . . . Recycling Units . | . . . Scanalyzers . | . . . Garrison Access . | . . . Data Cores Recovered . | . . . Used . | . . . Hacking Detections 2 | . 1 1 Full Trace Events . | . . . Feedback Events . | . . . Feedback Blocked . | . . . Robot Schematics Acquired . | . . . Robots Built . | . . . Matter . | . . . Time . | . . . Total Robot Build Rating . | . . . Part Schematics Acquired . | . . . Parts Built . | . . . Matter . | . . . Time . | . . . Total Part Build Rating . | . . . Parts Repaired 1 | . . 1 Time 32 | . . 32 Parts Recycled . | . . . Recycled Matter . | . . . Retrieved Matter . | . . . Retrieved Components 4 | . . 4 Parts Scanalyzed . | . . . Part Schematics Acquired . | . . . Parts Damaged . | . . . Bothacking | -11 -10 -9 ------------ Run | Scr Mat Mat Used RIF Installer . | . . . Robots Hacked . | . . . Non-combat . | . . . Combat . | . . . Robot Hacks Applied . | . . . Relay Couplers Released . | . . . Robots Rewired . | . . . Allies Hacked . | . . . Hacks Repelled . | . . . Allies | -11 -10 -9 -------- Run | Scr Mat Mat Total Allies . | . . . Largest Group . | . . . Highest-Rated Group . | . . . Highest-Rated Ally . | . . . Total Orders . | . . . Ally Attacks . | . . . Total Damage . | . . . Kills . | . . . Allies Corrupted . | . . . Allies Melted . | . . . Intel | -11 -10 -9 ------- Run | Scr Mat Mat Robot Analysis Total . | . . . Derelict Logs Recovered . | . . . Drone Launches . | . . . Drone Recoveries . | . . . Exploration | -11 -10 -9 ------------- Run | Scr Mat Mat Turns Passed 885 | 40 139 706 Spaces Moved 481 | 38 154 289 Core 11 | 1 8 2 Treads . | . . . Legs . | . . . Wheels 90 | 37 53 . Hover . | . . . Flight 380 | . 93 287 Fastest Speed 31 | 50 37 31 Average Speed 45 | 79 60 32 Slowest Speed 200 | 80 200 150 Overloaded Moves . | . . . Propulsion Burnouts . | . . . Robots Hopped 8 | . . 8 Cave-ins Triggered . | . . . Exploration Rate (%) 19 | 3 27 29 Regions Visited 2 Branch Regions . Pre-discovered Areas . | . . . Known Exits Taken . | . . . Unknown Exits Taken 2 | 1 1 . Scrap Searched . | . . . Spaces Dug . | . . . Terrain Destroyed . | . . . Melee . | . . . Projectile . | . . . AOE . | . . . Terrain Rammed . | . . . Walls Destroyed . | . . . Machines Disabled . | . . . Actions | -11 -10 -9 --------- Run | Scr Mat Mat Total 1100 | 47 185 868 Wait 551 | . 1 550 Move 464 | 37 153 274 Hop 7 | . . 7 Pick Up 16 | 5 7 4 Fast Attach 1 | . 1 . Attach 18 | 5 5 8 Detach 7 | . 3 4 Swap 3 | . 2 1 Drop 5 | . 4 1 Fire 27 | . 9 18 Melee . | . . . Ram 1 | . . 1 Kick . | . . . Crush . | . . . Escape Stasis . | . . . Rewire . | . . . Trap . | . . . Miscellaneous . | . . . Route ------- -11/Scrapyard -10/Materials -9/Materials History --------- Turn | Location | Event 24 | -11/Scrapyard | Discovered new exit (range 15) 41 | -11/Scrapyard | Entered Materials 176 | -10/Materials | Discovered new exit (range 11) 180 | -10/Materials | Entered another Materials area 180 | -9/Materials | Evolved 2 slots: Propulsion x2 453 | -9/Materials | Repaired Imp. Ion Engine 475 | -9/Materials | Build established: Sprinter 886 | -9/Materials | Self-destructed Last Messages --------------- M011. 00823_ S-10 Pest destroyed. 00833_ Lgt. Armor Plating destroyed. 00834_ S-10 Pest destroyed. 00834_ Switching to secondary target: S-10 Pest. 00839_ EM Pulse Gun destroyed. 00845_ VTOL Module destroyed. 00854_ O-16 Technician: "IFF HANDSHAKE FAILED. SECURING TERMINAL." 00859_ ALERT: Hostiles spotted, dispatching reinforcements to Terminal M008. 00862_ U-05 Engineer sends out distress signal. 00869_ Lgt. Armor Plating destroyed. 00871_ VTOL Module destroyed. 00876_ Slammed into G-34 Mercenary. 00876_ VTOL Module permanently disabled. 00876_ Destabilizing: Short circuit. 00877_ W-16 Scout sends out distress signal. 00880_ Imp. Ion Engine destroyed. 00881_ Lgt. Assault Rifle destroyed. 00883_ Broken VTOL Module destroyed. Map ----- +----------------------------------------------------+ | | | ?????????????????????????????????????????????????? | | ?????????????????????????????????????????????????? | | ?????????????????????????????????????????????????? | | ?????????????????????????????????????????????????? | | ?????????????????????????????????????????????????? | | ?????????????????????????????????????????????????? | | ?????????????????????????????????????????????????? | | ?????????????????????????????????????????????????? | | ?????????????????????????????????????????????????? | | ?????????????????????????#########???????????????? | | ?????????????????????????# #???????????????? | | ?????????????????????????# #???????????????? | | ?????????????????????????# #???????????????? | | ?????????????????????????# #???????????????? | | ?????????????????????????# #???????????????? | | ?????????????????????????# #???????????????? | | ?????????????????????????# #???????????????? | | ?????????????????????????# ! #???????????????? | | ?????????????????????????# #???????????????? | | ?????????????????????????# ## ###????????? | | ?????????????????????????# + ?? | | ??????????? #######+####u####/### ###????????? | | ?????????? g Y ######???????????? | | ?????????? g g s gu ???????? | | ?????????? @g ##### ######????????? | | ???????????? #######+#####+#####????????????????? | | ??????????????????? ?# #????????????????? | | ??????????????????""??# #????????????????? | | ?????????????????""???# +????????????????? | | ??????????????????????# #????????????????? | | ??????????????????????# #????????????????? | | ??????????????????????# !! #????????????????? | | ??????????????????????# !! #????????????????? | | ????####+##+#?????????# #????????????????? | | ????# #?????????#+#########????????????????? | | ????# ###???????# #????????????????????????? | | ????# [[! ""#???????# #????????????????????????? | | ????# [!! T"#???????# #????????????????????????? | | ????# [!! ""#???????# #????????????????????????? | | ##### ########### #????????????????????????? | | # #????????????????????????? | | # ########/######## #????????????????????????? | | | # #????? ?????# #????????????????????????? | | [# #????# "T" #???# ????????????????????????? | | # ###### #???####???????????????????????? | | # # =! #??????????????????????????????? | | / + / /#???????????#??????????????????? | | ## # #?????????? #??????????????????? | | ## #############????? #??????????????????? | +----------------------------------------------------+ Best States ------------- Heat Dissipation 28 Energy Generation 12 Energy Capacity 265 Matter Stores 291 Matter Capacity 300 Sight Range 16 Terrain Scan Density 10 Armor Coverage 300 Evasion (%) 63 Item Schematics ----------------- None Robot Schematics ------------------ None Fabricated ------------ Nothing Alien Tech Used ----------------- None Achievements -------------- None Challenges ------------ None Game ------ Seed BombardmentAlertPurifier Manual? 0 Play Time 00:16:37 Cumulative 4.9 hours Start 2021.11.26 @ 19:42:43 End 2021.11.26 @ 19:56:45 Sessions 1 Manual Loads 0 Difficulty Rogue Special Mode None Game No. 6 Rogue 6 Adventurer 0 Explorer 0 Win Type - Total 0 Types 0/0/0/0/0/0/0/0/0 Lore% 5 Gallery% 9 Achievement% 9 Wizard Run 0 Options --------- ASCII 0 Keyboard 0 Movement Mouse Keybinds 0 Fullscreen 2 Font 24/Smallcaps Map View 76x50 Tactical HUD 1 Map Filters NONE Filters NONE Steam 1 RUN: b24f33d8-7765-49dd-8511-68bfaacfa9d9